bitfinex/quotes_ETHUSD_20260103
["timestamp","ask_amount","ask_price","bid_price","bid_amount"]
[1767427345639,2.38941626,3091.1,3090.4,5.59069341]
[1767427346138,2.63033868,3091.3,3090.5,2.35406538]
[1767427346314,5.86523751,3091.3,3090.5,2.35406538]
[1767427347639,5.86523751,3091.3,3090.6,5.58968305]
[1767427348549,5.86523751,3091.3,3090.7,2.35406538]
[1767427348550,0.00180072,3091.3,3090.7,2.35406538]
[1767427350230,0.00180072,3091.3,3090.8,2.43619479]
[1767427350599,0.00180072,3091.3,3090.9,2.46854782]
[1767427351426,0.00180072,3091.3,3090.9,2.43619479]
[1767427352432,0.00180072,3091.3,3091.0,3.23519896]
[1767427353119,0.00180072,3091.3,3090.9,2.43619479]
[1767427353327,0.00180072,3091.3,3090.9,5.67145974]
[1767427356034,0.00180072,3091.3,3090.9,6.56233714]
[1767427356733,0.00180072,3091.3,3091.0,3.26753257]
[1767427356941,0.00180072,3091.3,3091.0,3.23518059]
[1767427358343,0.00180072,3091.3,3090.9,6.56232918]
[1767427359310,0.00180072,3091.3,3091.0,2.43619479]
[1767427361639,0.00180072,3091.3,3091.0,5.67137562]
[1767427362036,0.00180072,3091.3,3091.0,2.43619479]
[1767427362623,0.00180072,3091.3,3091.1,2.43619479]
[1767427362937,0.00180072,3091.3,3091.1,2.46854573]
[1767427363139,0.00080056,3091.6,3091.2,2.43619479]
[1767427363312,0.001,3091.9,3091.2,2.43699543]
[1767427363511,0.001,3091.9,3091.4,2.43619479]
[1767427365055,0.001,3092.1,3091.8,2.43619479]
[1767427365723,0.001,3092.1,3092.0,2.43619479]
[1767427369280,0.001,3092.1,3092.0,5.67034744]
[1767427369744,2.37565725,3092.6,3092.0,5.67034744]
[1767427369745,0.00180048,3092.6,3092.1,2.43619479]
[1767427369910,0.00180048,3092.6,3092.0,0.89046944]
[1767427369911,2.37485677,3092.5,3091.8,5.67129605]
[1767427370114,2.37485677,3092.5,3091.8,0.0008004]
[1767427370752,2.37385677,3092.4,3091.8,0.0008004]
[1767427370953,2.37485677,3092.1,3091.8,0.0008004]
[1767427374744,5.60895372,3092.1,3091.8,0.0008004]
[1767427374948,6.25984909,3092.1,3091.8,0.0008004]
[1767427375249,2.37385677,3092.0,3091.8,0.0008004]
[1767427376246,3.88602613,3092.1,3091.8,0.0008004]
[1767427376439,6.2598829,3092.1,3091.8,0.0008004]
[1767427376630,2.37385677,3092.0,3091.8,0.0008004]
[1767427377844,5.60804823,3092.0,3091.8,0.0008004]
[1767427378152,6.55744336,3092.0,3091.8,0.0028004]
[1767427378349,6.55744336,3092.0,3091.8,0.00160264]
[1767427378940,6.55744336,3092.0,3091.2,0.00080064]
[1767427378941,2.37385677,3091.9,3091.2,0.00080064]
[1767427379523,2.37385677,3091.9,3091.2,3.23578941]
[1767427379832,2.32740189,3091.8,3091.2,0.00080064]
[1767427380957,3.17540189,3092.0,3091.2,2.40553823]
[1767427381162,0.65189537,3092.1,3091.2,2.40553823]
[1767427381339,0.091,3092.1,3091.2,2.40553823]
[1767427381535,0.001,3092.5,3091.9,2.40473759]
[1767427381735,0.001,3092.5,3092.1,5.63878564]
[1767427382751,0.001,3092.5,3092.1,2.40473759]
[1767427383760,2.32840189,3092.8,3092.0,6.46826076]
[1767427383761,0.001,3092.8,3092.4,5.6384719]
[1767427384125,0.00080056,3093.0,3092.5,2.40473759]
[1767427384323,0.00080056,3093.0,3092.6,2.40473759]
[1767427384526,2.32820245,3093.0,3092.5,0.88722062]
[1767427385827,0.001,3093.2,3092.6,6.467851]
[1767427386328,0.001,3093.4,3092.7,2.40473759]
[1767427387066,0.001,3093.4,3092.6,6.467851]
[1767427387368,0.001,3093.7,3092.8,2.40473759]
[1767427387547,0.0008004,3094.1,3093.6,2.40473759]
[1767427388037,0.0008004,3094.1,3093.4,2.40473759]
[1767427388234,0.001,3094.0,3092.9,2.40473759]
[1767427388555,0.0008004,3094.1,3093.3,2.40473759]
[1767427388757,0.0008004,3094.1,3093.4,2.40473759]
[1767427389439,0.0008004,3094.1,3093.7,2.40473759]
[1767427390439,0.0008004,3094.1,3093.8,2.40473759]
[1767427392896,0.0008004,3094.1,3093.5,2.40473759]
[1767427394432,0.00080008,3096.3,3095.3,2.40473759]
[1767427394779,0.00080008,3096.3,3095.3,0.848]
[1767427394780,0.16864596,3095.6,3095.3,0.848]
[1767427395058,0.00080016,3095.7,3095.3,0.848]
[1767427396234,0.00080016,3095.7,3095.4,2.40473759]
[1767427396739,0.00080016,3095.7,3095.0,2.40473759]
[1767427396935,0.00080016,3095.7,3095.3,0.848]
[1767427398038,0.00080016,3095.7,3095.4,2.40473759]
[1767427398236,0.00080008,3096.3,3095.5,2.40473759]
[1767427398441,0.64677061,3096.3,3095.5,2.40473759]
[1767427398654,0.64677061,3096.3,3095.6,2.40473759]
[1767427398962,3.23049561,3096.3,3095.6,2.40473759]
[1767427399550,6.46019114,3096.3,3095.6,2.40473759]
[1767427400374,8.78759303,3096.3,3095.5,0.848]
[1767427400863,0.00080008,3096.3,3095.6,2.40473759]
[1767427401237,0.32383871,3096.3,3095.6,2.40473759]
[1767427401834,0.00080008,3096.3,3095.6,2.40473759]
[1767427402051,5.55786598,3096.3,3095.5,0.848]
[1767427402257,2.32740189,3096.2,3095.5,0.848]
[1767427402839,3.22986983,3096.1,3095.5,0.848]
[1767427403565,3.22986983,3096.1,3095.3,3.25353783]
[1767427403863,0.87871219,3096.0,3095.3,3.25353783]
[1767427404259,0.87871219,3096.0,3095.4,2.40473759]
[1767427404572,6.45973966,3096.1,3095.4,2.40473759]
[1767427404771,0.00180008,3096.3,3095.4,2.40473759]
[1767427405432,2.32920197,3096.3,3095.3,0.00080024]
[1767427405762,3.17620197,3096.3,3095.3,0.00080024]
[1767427405962,2.32740189,3096.2,3095.3,0.00080024]
[1767427406175,2.32740189,3096.0,3095.3,0.00080024]
[1767427406961,3.23007849,3095.9,3095.3,0.00080024]
[1767427407468,6.46015698,3095.9,3095.3,0.00080024]
[1767427408077,3.23007849,3095.9,3095.3,0.00080024]
[1767427408376,6.46015698,3095.9,3095.3,0.00080024]
[1767427408578,0.87875589,3095.8,3095.3,0.00080024]
[1767427408970,3.54756748,3096.1,3095.3,0.00080024]
[1767427409274,0.00180008,3096.3,3095.5,2.2936528]
[1767427409448,3.23150449,3096.3,3095.5,2.2936528]
[1767427410781,0.00180008,3096.3,3095.5,5.52406921]
[1767427411152,0.001,3095.9,3095.5,5.52406921]
[1767427411550,0.001,3095.9,3095.6,2.26923916]
[1767427412789,2.40232816,3097.5,3096.2,0.00080016]
[1767427413080,2.40312816,3097.1,3096.2,0.00080016]
[1767427414055,0.0008,3097.1,3096.2,2.27003932]
[1767427414254,2.40312816,3097.1,3096.3,0.848]
[1767427414785,3.22893122,3097.0,3096.3,0.848]
[1767427415089,0.56320594,3096.9,3096.2,2.27003932]
[1767427415459,0.56320594,3096.9,3096.2,3.11703932]
[1767427416369,0.56320594,3096.9,3096.2,6.3467997]
[1767427416592,0.56320594,3096.9,3096.2,3.11703932]
[1767427416782,3.22913975,3096.8,3096.2,0.84780016]
[1767427416962,6.01068163,3096.8,3096.2,0.84780016]
[1767427417163,9.23982138,3096.8,3096.2,0.00080016]
[1767427417358,6.01068163,3096.8,3096.2,0.00080016]
[1767427417562,2.78154188,3096.8,3096.2,0.00080016]
[1767427417788,2.78154188,3096.8,3096.2,2.27003932]
[1767427417789,0.37921372,3096.8,3096.2,2.27003932]
[1767427417989,3.22896084,3097.0,3096.3,2.26923916]
[1767427419095,6.45853652,3097.1,3096.3,2.26923916]
[1767427419798,2.40232816,3097.0,3096.3,0.002]
[1767427421173,5.63136364,3096.9,3096.3,0.002]
[1767427421374,0.88603283,3096.8,3096.3,0.002]
[1767427423200,3.22896369,3097.0,3096.3,0.002]
[1767427424205,6.45797313,3097.0,3096.3,0.002]
[1767427424373,2.40232816,3096.9,3096.3,0.002]
[1767427424695,0.00080016,3096.3,3096.0,0.03229974]
[1767427424897,0.00080016,3096.3,3095.7,2.26923916]
[1767427425099,0.00080016,3096.3,3095.1,0.847]
[1767427425100,0.00080016,3096.3,3095.4,2.26923916]
[1767427425303,0.00080016,3096.3,3095.1,0.847]
[1767427425304,9.10234109,3096.2,3095.1,2.26923916]
[1767427425480,2.40232816,3096.1,3095.1,2.26923916]
[1767427425796,2.40232816,3096.1,3095.1,5.50008832]
[1767427426389,2.40232816,3096.1,3095.2,3.23078378]
[1767427426697,2.40232816,3096.1,3095.4,0.0902149]
[1767427427298,3.22997416,3096.0,3095.4,0.0902149]
[1767427427698,8.86227648,3096.0,3095.3,0.04819354]
[1767427427882,2.72532558,3095.9,3095.3,0.04819354]
[1767427428411,0.32299742,3095.9,3095.3,0.04819354]
[1767427428571,0.00080016,3096.3,3095.5,2.26923916]
[1767427428773,0.00080016,3096.3,3095.7,2.26923916]
[1767427429008,0.00080016,3096.6,3095.9,2.26923916]
[1767427429176,0.00080016,3096.6,3096.1,2.26923916]
[1767427429382,0.00080016,3096.6,3096.2,2.26923916]
[1767427430512,0.00080016,3096.6,3096.0,3.22996815]
[1767427430807,0.00080016,3096.6,3096.1,4.07685727]
[1767427431110,0.00080016,3096.6,3096.1,4.07686496]
[1767427431306,0.00080016,3096.6,3096.3,3.2296612]
[1767427431675,1.5253,3097.1,3096.4,2.26923916]
[1767427431891,1.5253,3097.1,3097.0,0.0473933]
[1767427432086,1.5253,3097.1,3097.0,0.04616749]
[1767427432421,1.47913251,3097.1,3096.7,2.26923916]
[1767427432574,1.47913251,3097.1,3096.7,2.27003924]
[1767427433179,1.47913251,3097.1,3096.7,0.00080008]
[1767427433385,4.70797119,3097.1,3096.7,0.00080008]
[1767427433606,0.47089712,3097.0,3096.7,0.00080008]
[1767427434676,1.47913251,3097.1,3096.7,0.00080008]
[1767427435874,4.70796106,3097.1,3096.7,0.00080008]
[1767427436074,7.93678961,3097.1,3096.7,0.00080008]
[1767427436326,2.40232816,3097.0,3096.2,0.00080024]
[1767427437372,2.40232816,3097.0,3096.3,0.002]
[1767427437601,2.40232816,3096.8,3095.3,0.00280024]
[1767427437774,2.40232816,3096.2,3095.6,0.847]
[1767427437969,2.40232816,3096.2,3095.7,3.23021712]
[1767427438194,0.00080024,3096.3,3095.6,6.34660621]
[1767427439179,0.00080024,3096.3,3095.3,2.2720394]
[1767427439372,2.4031284,3096.3,3095.3,0.00280024]
[1767427439771,2.38686186,3096.1,3095.3,0.00280024]
[1767427441894,0.84780024,3096.3,3095.3,0.00280024]
[1767427441895,2.38686186,3095.9,3095.3,0.00280024]
[1767427442414,2.38686186,3096.2,3095.3,0.00280024]
[1767427442584,0.84780024,3096.3,3095.3,0.00280024]
[1767427442585,0.00080024,3096.3,3095.3,2.34958068]
[1767427442775,0.00080024,3096.3,3095.5,2.34678044]
[1767427442975,0.00080024,3096.3,3095.4,0.23495807]
[1767427442976,0.00080024,3096.3,3095.7,2.34678044]
[1767427444198,0.00080024,3096.3,3095.8,8.80714608]
[1767427444976,0.00080024,3096.3,3095.9,0.03230078]
[1767427445173,0.00080024,3096.3,3095.9,2.37908122]
[1767427445407,2.32793259,3097.1,3096.1,2.34678044]
[1767427445575,2.32793259,3097.1,3096.2,2.37987841]
[1767427445775,2.32793259,3097.1,3096.2,2.34758076]
[1767427446007,5.55680252,3097.1,3096.2,2.34758076]
[1767427446909,5.55680252,3097.1,3096.3,3.2296612]
[1767427447209,5.55680252,3097.1,3096.2,2.34758076]
[1767427447210,11.17253431,3097.1,3096.2,0.00080032]
[1767427447379,7.94366438,3097.1,3096.2,3.23056184]
[1767427447801,11.17253431,3097.1,3096.2,0.00080032]
[1767427448208,11.17253431,3097.1,3096.2,3.23053403]
[1767427448408,11.17253431,3097.1,3096.2,3.87981274]
[1767427448814,7.94366438,3097.1,3096.2,3.87981274]
[1767427449306,2.38686186,3097.0,3096.2,0.00080032]
[1767427451208,2.38686186,3096.8,3096.2,0.00080032]
[1767427451710,2.38766218,3096.6,3095.9,0.00080032]
[1767427451911,3.23386186,3096.5,3095.9,0.00080032]
[1767427452336,2.38686186,3096.4,3095.3,0.00280024]
[1767427452488,0.847,3096.5,3095.3,0.00280024]
[1767427452489,2.71104837,3096.3,3095.3,0.00280024]
[1767427452800,2.71104837,3096.3,3095.3,3.23349936]
[1767427452998,2.71104837,3096.3,3095.3,0.00280024]
[1767427453479,3.22976551,3096.2,3095.3,0.00280024]
[1767427453917,3.22976551,3096.2,3095.9,0.002]
[1767427454118,0.59408139,3096.1,3095.9,0.002]
[1767427455012,3.23386186,3096.0,3095.3,0.00280024]
[1767427455191,2.38686186,3095.9,3095.3,0.00280024]
[1767427455401,0.59408139,3096.1,3095.3,0.00280024]
[1767427455603,3.23007849,3095.9,3095.3,0.00280024]
[1767427456205,6.46015698,3095.9,3095.3,0.00280024]
[1767427456407,8.84701884,3095.9,3095.3,0.00280024]
[1767427456717,8.84701884,3095.9,3095.0,0.002]
[1767427456718,2.38686186,3095.8,3095.0,0.002]
[1767427456919,0.00080024,3095.7,3095.0,0.002]
[1767427457620,3.23108741,3095.7,3095.0,0.002]
[1767427458727,6.46137458,3095.7,3095.0,0.002]
[1767427459226,2.38686186,3095.6,3095.0,0.002]
[1767427459643,2.38686186,3095.4,3095.0,0.002]
[1767427461314,2.38686186,3095.4,3094.9,0.00080024]
[1767427461632,2.38686186,3095.2,3094.6,0.002]
[1767427462225,2.38686186,3095.2,3095.0,0.002]
[1767427462541,3.27176899,3095.2,3095.0,0.002]
[1767427462839,3.27176899,3095.2,3094.5,0.0004008]
[1767427462840,0.88490713,3095.2,3094.5,0.0004008]
[1767427463419,0.88490713,3095.2,3094.6,2.34678044]
[1767427463628,4.07784805,3095.2,3094.6,2.34678044]
[1767427463936,7.3086961,3095.2,3094.5,0.0004008]
[1767427464236,2.38686186,3095.1,3094.5,0.0004008]
[1767427466139,6.46203554,3095.0,3094.5,0.0004008]
[1767427466306,2.38686186,3094.9,3094.0,0.002]
[1767427466637,2.38686186,3094.6,3094.0,0.002]
[1767427466841,0.847,3094.5,3094.0,0.002]
[1767427467052,2.38686186,3094.4,3094.0,0.002]
[1767427467552,2.38686186,3094.4,3092.6,0.84780064]
[1767427467757,2.38766234,3094.1,3092.9,5.57995609]
[1767427467933,3.23386186,3094.0,3093.0,2.34678044]
[1767427468120,3.23386186,3094.0,3093.0,5.57988205]
[1767427468722,3.23216652,3093.9,3093.1,3.23299685]
[1767427469352,4.07910595,3094.0,3093.1,5.55381583]
[1767427469760,7.71920254,3094.0,3093.1,2.32081898]
[1767427470754,10.05010804,3094.0,3093.1,2.32081898]
[1767427470934,2.3309055,3093.9,3092.8,2.39751995]
[1767427471138,2.3309055,3093.9,3092.8,5.63083237]
[1767427471337,2.3309055,3093.8,3092.8,2.96088325]
[1767427472151,2.3309055,3093.8,3092.8,2.39751995]
[1767427472347,2.3309055,3093.8,3092.7,0.002]
[1767427472862,2.3309055,3093.6,3092.7,0.002]
[1767427473059,2.3309055,3093.4,3092.7,0.002]
[1767427474343,2.3309055,3093.4,3092.5,0.002]
[1767427474659,2.3309055,3092.9,3092.5,0.002]
[1767427474836,6.46663216,3092.8,3092.5,0.002]
[1767427475026,8.79753766,3092.8,3092.2,0.00080056]
[1767427475226,2.3309055,3092.7,3092.2,0.00080056]
[1767427475852,2.3309055,3092.7,3092.0,0.002]
[1767427476055,3.21145983,3092.6,3091.5,3.23657728]
[1767427476245,3.21145983,3092.6,3091.6,3.23456502]
[1767427476637,3.21145983,3092.6,3091.5,2.39951995]
[1767427476840,3.23362974,3092.5,3091.5,2.39951995]
[1767427477034,4.11411022,3092.6,3091.8,2.39832043]
[1767427478451,3.23435645,3092.6,3091.8,2.39832043]
[1767427478653,0.00080056,3092.6,3091.8,2.39832043]
[1767427479254,0.00080056,3092.6,3091.9,2.39751995]
[1767427480840,2.33170606,3092.6,3091.8,0.00080048]
[1767427481161,5.56474439,3092.3,3091.8,0.00080048]
[1767427481369,0.848,3092.2,3091.8,0.00080048]
[1767427482636,3.46686274,3092.5,3091.8,0.00080048]
[1767427482944,0.848,3092.4,3091.8,2.39832043]
[1767427483938,3.23369213,3092.5,3091.8,5.63267221]
[1767427484136,3.23369213,3092.5,3091.8,2.39832043]
[1767427484464,3.23369213,3092.5,3091.8,5.6326756]
[1767427484760,4.08236446,3092.6,3091.8,5.6326756]
[1767427484938,4.08236446,3092.6,3091.9,2.39751995]
[1767427485363,0.00080056,3092.6,3091.9,5.63176624]
[1767427485761,0.84880056,3092.6,3091.9,5.63176624]
[1767427486854,0.84880056,3092.6,3091.9,2.39751995]
[1767427487963,4.08234529,3092.6,3091.9,5.63177629]
[1767427488265,4.08234529,3092.6,3091.9,2.39751995]
[1767427490550,4.81392242,3092.6,3091.9,2.39751995]
[1767427493268,4.81392242,3092.6,3091.9,2.39951995]
[1767427495266,4.81392242,3092.6,3092.1,3.23404805]
[1767427495267,0.00080056,3092.6,3092.1,3.23404805]
[1767427495466,0.00080056,3092.6,3092.2,2.39751995]
[1767427495958,0.00080056,3092.6,3092.1,1.1]
[1767427496542,0.00080056,3092.6,3092.1,3.49751995]
[1767427496743,0.00080056,3092.6,3092.1,4.49429773]
[1767427497474,0.00080056,3092.6,3092.1,3.49751995]
[1767427498462,0.00080056,3092.6,3092.1,6.73155458]
[1767427498863,0.00080056,3092.6,3092.1,3.49751995]
[1767427500746,0.00080056,3092.6,3092.1,6.73156205]
[1767427500948,0.00080056,3092.6,3092.1,1.1]
[1767427501149,2.61933963,3092.5,3092.1,1.1]
[1767427501380,2.38114507,3092.5,3092.1,1.1]
[1767427502854,5.61478067,3092.5,3092.1,1.1]
[1767427503082,2.38114507,3092.5,3092.1,1.1]
[1767427503269,5.61478611,3092.5,3092.0,0.002]
[1767427503466,8.84842715,3092.5,3092.0,0.002]
[1767427503750,3.26606784,3092.4,3092.0,0.002]
[1767427503951,3.23383889,3092.3,3092.0,0.002]
[1767427504255,2.38114507,3092.2,3092.0,0.002]
[1767427505079,2.38114507,3092.2,3091.8,0.00280048]
[1767427507283,3.23404805,3092.1,3091.8,0.00280048]
[1767427507582,0.88491717,3092.0,3091.8,0.00280048]
[1767427508484,3.26606224,3092.0,3091.8,0.00280048]
[1767427510482,3.23425725,3091.9,3091.8,0.00280048]
[1767427511472,2.38114507,3091.8,3091.3,0.002]
[1767427511700,4.11411103,3091.7,3091.3,0.002]
[1767427511863,4.11411103,3091.7,3090.9,2.35659525]
[1767427511864,2.38194571,3091.6,3090.9,2.35659525]
[1767427512586,3.23467572,3091.5,3090.9,2.35659525]
[1767427513956,5.61582079,3091.5,3090.9,2.35659525]
[1767427514176,6.67423713,3091.5,3090.9,2.35659525]
[1767427515388,3.43956141,3091.5,3090.9,2.35659525]
[1767427515731,0.00080064,3091.6,3090.9,5.59189198]
[1767427515986,6.4700102,3091.6,3091.0,2.35379445]
[1767427516189,5.61655049,3091.6,3091.0,2.35379445]
[1767427516781,0.00080064,3091.6,3091.0,2.35379445]
[1767427516971,0.00080064,3091.6,3091.0,2.38614643]
[1767427517166,0.84880064,3091.6,3091.1,2.35379445]
[1767427518866,4.08337201,3091.6,3091.1,2.35379445]
[1767427520168,2.38114507,3091.5,3090.9,0.0028008]
[1767427521292,2.38114507,3091.5,3090.9,5.59188824]
[1767427522097,5.61582286,3091.5,3090.9,2.35659525]
[1767427523097,9.82040968,3091.5,3090.9,2.35659525]
[1767427523299,6.58573189,3091.5,3090.9,2.35659525]
[1767427526705,2.38114507,3091.4,3090.9,0.0028008]
[1767427526886,7.43926461,3091.5,3090.9,0.0028008]
[1767427526887,6.46403006,3091.3,3090.9,0.0028008]
[1767427527779,9.69891505,3091.3,3090.9,0.0028008]
[1767427528175,2.38114507,3091.2,3090.5,0.002]
[1767427528766,6.4701886,3091.1,3090.5,0.002]
[1767427528972,2.38114507,3091.0,3090.5,0.002]
[1767427529172,0.88513337,3090.9,3090.5,0.002]
[1767427531674,3.2354083,3090.8,3090.5,0.002]
[1767427532304,0.88513337,3090.9,3090.5,2.48220803]
[1767427532476,0.848,3091.0,3090.5,2.48220803]
[1767427533074,5.20380491,3090.7,3090.1,0.002]
[1767427533374,2.46132692,3090.7,3090.1,0.002]
[1767427534004,2.46132692,3090.7,3090.1,2.48220803]
[1767427534206,2.46132692,3090.6,3090.1,0.002]
[1767427534409,0.848,3090.5,3090.1,0.002]
[1767427534906,0.848,3090.5,3090.1,2.48220803]
[1767427536408,0.00080096,3090.8,3090.1,2.48220803]
[1767427536409,0.00080096,3090.8,3090.4,2.48020803]
[1767427536595,0.00080096,3090.8,3090.4,2.5125663]
[1767427536800,0.00080096,3090.8,3090.4,2.48020803]
[1767427539210,0.00080096,3090.8,3090.5,2.48020803]
[1767427540101,0.00080096,3090.8,3090.6,2.48020803]
[1767427542883,0.848,3091.2,3090.7,2.48020803]
[1767427543423,0.0008008,3091.3,3090.7,2.48020803]
[1767427543424,0.8488008,3091.3,3090.7,2.48020803]
[1767427546120,6.54510889,3091.3,3090.7,2.48020803]
[1767427546420,0.97799847,3091.2,3090.7,2.48020803]
[1767427547122,3.43932539,3091.2,3090.5,2.48220803]
[1767427547899,3.43932539,3091.2,3090.5,0.002]
[1767427547900,2.46132692,3091.0,3090.5,0.002]
[1767427548089,3.03096904,3090.9,3090.5,0.002]
[1767427548290,2.46132692,3090.9,3090.5,0.002]
[1767427550250,5.69642122,3091.1,3090.5,0.002]
[1767427550745,8.93161608,3091.1,3090.5,0.002]
[1767427551146,5.69642122,3091.1,3090.5,0.002]
[1767427551348,0.99094399,3091.0,3090.5,0.002]
[1767427551837,0.001,3090.9,3090.5,0.002]
[1767427553427,3.23630363,3090.9,3090.5,0.002]
[1767427555217,6.47160726,3090.9,3090.5,0.002]
[1767427555419,4.08430363,3090.9,3090.5,0.002]
[1767427555616,0.83104722,3090.8,3090.5,0.002]
[1767427559744,0.83204722,3090.8,3090.5,0.002]
[1767427560318,2.33344011,3090.7,3090.4,0.00080104]
[1767427561255,4.06746139,3090.8,3090.4,0.00080104]
[1767427561460,0.72499015,3090.7,3090.4,2.47858107]
[1767427561614,0.0008008,3091.3,3090.7,2.47678003]
[1767427561815,0.0008008,3091.3,3090.8,2.47778003]
[1767427563315,0.0008008,3091.3,3090.8,2.4765425]
[1767427564222,0.0008008,3091.3,3090.8,2.47531621]
[1767427565418,2.74247799,3091.0,3090.4,0.00080104]
[1767427565618,5.56890244,3090.8,3090.4,0.00080104]
[1767427566448,2.33344011,3090.8,3090.4,0.00080104]
[1767427566646,4.08332901,3090.9,3090.4,0.00080104]
[1767427566850,0.91592471,3090.8,3090.4,0.00080104]
[1767427568049,0.91592471,3090.8,3090.4,2.47858107]
[1767427568349,2.33344011,3090.7,3090.1,0.002]
[1767427568549,2.33344011,3090.7,3090.1,2.47978003]
[1767427569055,0.00080104,3090.8,3090.5,0.001]
[1767427571251,2.33344011,3090.7,3090.1,0.002]
[1767427571549,3.57298192,3090.7,3090.1,2.47978003]
[1767427571732,1.23954181,3090.7,3090.1,2.47978003]
[1767427572761,4.47507875,3090.7,3090.1,2.47978003]
[1767427577470,7.71061569,3090.7,3090.1,2.47978003]
[1767427578038,4.47507875,3090.7,3090.1,2.47978003]
[1767427579865,4.51441044,3090.6,3090.1,2.47978003]
[1767427580236,6.84785055,3090.6,3090.1,0.002]
[1767427582969,10.0835385,3090.6,3090.1,0.002]
[1767427585844,2.33344011,3090.5,3090.1,0.001]
[1767427586042,2.33344011,3090.1,3089.6,0.002]
[1767427586555,0.00080112,3090.3,3089.6,2.47978003]
[1767427586963,0.00080112,3090.3,3089.6,5.71644114]
[1767427588645,3.2367329,3090.3,3089.6,5.71644114]
[1767427588989,5.67181292,3090.3,3089.6,5.71644114]
[1767427589280,0.65208129,3090.2,3089.6,5.71644114]
[1767427589776,0.65208129,3090.2,3089.6,2.47978003]
[1767427591475,6.34271878,3090.2,3089.6,2.47978003]
[1767427591676,9.5788548,3090.2,3089.6,2.47978003]
[1767427592470,2.45450147,3090.1,3089.6,0.002]
[1767427592650,2.45450147,3089.9,3089.6,0.002]
[1767427592848,2.45450147,3089.9,3089.5,0.002]
[1767427593877,2.45450147,3089.8,3089.5,0.002]
[1767427594259,4.19417379,3090.0,3089.5,0.002]
[1767427594465,6.64867526,3090.0,3089.5,0.002]
[1767427595070,2.45450147,3089.8,3089.5,0.002]
[1767427595987,3.23629262,3090.0,3089.5,0.002]
[1767427597802,2.45450147,3090.1,3089.5,0.002]
[1767427598219,2.45450147,3090.1,3089.3,0.00280112]
[1767427598486,2.45450147,3089.9,3089.3,0.00280112]
[1767427598660,2.45450147,3089.7,3089.3,0.00280112]
[1767427598862,2.45450147,3089.6,3089.2,0.002]
[1767427599899,2.45450147,3089.4,3088.8,0.002]
[1767427600183,3.2367697,3089.5,3088.8,0.002]
[1767427600184,2.45450147,3089.2,3088.8,0.002]
[1767427602688,0.56912712,3089.3,3088.8,0.002]
[1767427602888,2.45450147,3089.2,3088.8,0.002]
[1767427603181,3.23705021,3089.3,3088.8,0.002]
[1767427603892,3.23705021,3089.3,3088.8,2.34163264]
[1767427604791,2.45450147,3089.3,3088.8,0.002]
[1767427607485,5.69148821,3089.3,3088.8,0.002]
[1767427607690,0.56914882,3089.2,3088.8,0.002]
[1767427608584,0.56914882,3089.2,3088.8,2.34163264]
[1767427612899,6.26075367,3089.2,3088.5,3.23780099]
[1767427613079,2.45450147,3089.1,3088.4,3.23788118]
[1767427613278,2.45450147,3089.1,3088.3,2.34163264]
[1767427613279,0.62607537,3089.0,3088.3,5.57765051]
[1767427613688,2.45450147,3089.1,3088.4,2.33963264]
[1767427613999,5.69169103,3089.1,3088.4,2.33963264]
[1767427614185,2.45450147,3089.1,3088.4,2.33963264]
[1767427616405,2.45450147,3089.1,3088.5,2.33963264]
[1767427616406,5.69172706,3089.1,3088.5,2.33963264]
[1767427616774,2.45450147,3089.1,3088.5,2.33963264]
[1767427617507,3.30350147,3089.1,3088.5,2.33963264]
[1767427619304,3.30350147,3089.1,3088.5,5.57743567]
[1767427619711,6.54069652,3089.1,3088.5,2.33963264]
[1767427619909,7.51856483,3089.1,3088.5,2.33963264]
[1767427621493,7.51856483,3089.1,3088.3,2.46804779]
[1767427622702,10.75575988,3089.1,3088.3,2.46804779]
[1767427623104,2.40377745,3089.0,3088.3,0.002]
[1767427623301,2.40377745,3088.8,3088.3,0.002]
[1767427623626,3.23760805,3088.7,3088.3,0.002]
[1767427625101,5.6413855,3088.7,3088.3,0.002]
[1767427626376,2.40377745,3088.6,3088.0,0.002]
[1767427627394,3.25277745,3088.6,3088.0,0.002]
[1767427627707,4.22556684,3088.6,3088.0,0.002]
[1767427627929,7.46328107,3088.6,3088.0,0.002]
[1767427628582,2.40377745,3088.4,3087.5,0.002]
[1767427628815,0.0008004,3088.3,3087.5,0.002]
[1767427628982,2.40377745,3088.2,3087.5,0.002]
[1767427629702,2.40377745,3088.2,3087.5,2.46804779]
[1767427629902,3.2382371,3088.1,3087.5,2.46804779]
[1767427630098,3.2382371,3088.1,3087.5,0.002]
[1767427630099,2.40377745,3088.0,3087.5,0.002]
[1767427630979,2.40377745,3088.0,3087.3,2.46604779]
[1767427631180,0.64910146,3087.9,3087.1,2.46684859]
[1767427631513,0.0008004,3088.3,3087.6,2.46404779]
[1767427631712,0.0008004,3088.3,3087.5,3.2388333]
[1767427631713,0.0008004,3088.3,3087.8,2.46604779]
[1767427632007,4.08662939,3088.7,3088.2,2.46604779]
[1767427632208,9.72803623,3088.7,3087.9,0.00080048]
[1767427632409,3.37658107,3088.6,3087.9,0.00080048]
[1767427632795,2.40377745,3088.5,3087.9,0.00080048]
[1767427633195,2.40377745,3088.5,3087.9,0.00280048]
[1767427634209,5.64162746,3088.5,3087.9,0.00280048]
[1767427634405,2.40377745,3088.4,3087.5,2.46604779]
[1767427634582,2.40457793,3088.3,3087.5,2.46604779]
[1767427634787,2.40377745,3088.1,3087.5,2.46604779]
[1767427635289,2.40377745,3088.1,3087.4,5.70495447]
[1767427635483,2.40377745,3088.1,3087.4,2.46604779]
[1767427635698,2.7290552,3088.0,3087.4,2.46604779]
[1767427636294,5.96749601,3088.0,3087.4,2.46604779]
[1767427636494,2.40377745,3087.9,3087.2,2.46604779]
[1767427637328,0.32527775,3088.0,3087.2,2.46604779]
[1767427637630,3.56362542,3088.0,3087.4,2.46604779]
[1767427637793,0.59674029,3087.9,3087.4,2.46604779]
[1767427638195,5.64232916,3087.8,3087.2,2.46604779]
[1767427638608,8.88088087,3087.8,3087.2,2.46604779]
[1767427639322,0.849,3087.7,3087.2,2.46604779]
[1767427640598,4.08765962,3087.7,3087.2,2.46604779]
[1767427641441,5.12032247,3087.7,3087.2,2.46604779]
[1767427641939,1.88166285,3087.7,3087.3,2.46604779]
[1767427642243,0.849,3087.8,3087.3,2.46604779]
[1767427642395,0.00080048,3088.3,3087.3,2.46604779]
[1767427642591,0.849,3088.2,3087.5,2.46504779]
[1767427642816,0.849,3088.2,3087.7,2.46604779]
[1767427644222,0.849,3088.2,3087.8,2.46604779]
[1767427644928,0.00080048,3088.3,3087.8,2.46604779]
[1767427648913,0.00080048,3088.3,3087.8,2.46804779]
[1767427651122,2.47007777,3088.3,3087.8,0.002]